[Event "Susha Chess Rapid 2022"]
[Site "Shusha"]
[Date "2022.09.23"]
[Round "7.1"]
[White "Guseinov, Gadir"]
[Black "Radjabov, Teimour"]
[Result "1/2-1/2"]
[ECO "C67"]
[WhiteElo "2661"]
[BlackElo "2747"]
[Annotator "TA"]
[PlyCount "23"]
[EventDate "2022.09.21"]
[EventType "tourn"]
[EventCountry "AZE"]
[SourceTitle "playchess.com"]
[Source "ChessBase"]
[SourceQuality "1"]
[TimeControl "900+10"]

{[%evp 19,23,0,0,0,0,0]} 1. e4 {[%emt 0:00:01]} e5 {[%emt 0:00:01]} 2. Nf3 {[%emt 0:00:01]} Nc6 {[%emt 0:00:01]} 3. Bb5 {[%emt 0:00:01]} Nf6 {[%emt 0:00:03]} 4. O-O {[%emt 0:00:02]} Nxe4 {[%emt 0:00:02]} 5. d4 {[%emt 0:00:00][%cal Bd2d4,Bd4e5][%mdl 32]} Nd6 {[%emt 0:00:05]} 6. dxe5 {[%emt 0:00:02]} Nxb5 {[%emt 0:00:02]} 7. a4 {[%emt 0:00:00]} Nbd4 {[%emt 0:00:06]} 8. Nxd4 {[%emt 0:00:02]} Nxd4 {[%emt 0:00:04]} 9. Qxd4 {[%emt 0:00:01]} d5 {[%emt 0:00:03]} 10. exd6 {[%emt 0:00:03]} Qxd6 {[%emt 0:00:01] [#]} ({Don't take} 10... Be6 11. Bf4 $16) 11. Qe4+ $146 {[%emt 0:00:01] C67: Ruy Lopez: Berlin Defence: 4 0-0 Nxe4.} ({Predecessor:} 11. Qe3+ Be6 12. Nc3 Qc6 13. Nb5 Bc5 14. Qg3 O-O-O 15. b4 Bb6 16. a5 Qxb5 17. axb6 Qxb6 18. Be3 Qd6 19. Rxa7 Qxg3 20. hxg3 Bc4 21. Ra8+ Kd7 22. Rd1+ {1-0 (24) Jobava,B (2603)-Bartel,M (2611) Chess.com INT 2021}) 11... Qe6 {[%emt 0:00:01]} 12. Qd4 {[%emt 0:00:01] A balanced but interesting game.} 1/2-1/2

[Event "Susha Chess Rapid 2022"]
[Site "Shusha"]
[Date "2022.09.23"]
[Round "7.2"]
[White "Kasimdzhanov, Rustam"]
[Black "Vidit, Santosh Gujrathi"]
[Result "0-1"]
[ECO "C45"]
[WhiteElo "2670"]
[BlackElo "2710"]
[Annotator "TA"]
[PlyCount "208"]
[EventDate "2022.09.21"]
[EventType "tourn"]
[EventCountry "AZE"]
[SourceTitle "playchess.com"]
[Source "ChessBase"]
[SourceQuality "1"]
[TimeControl "900+10"]

{[%evp 49,208,0,0,0,0,0,34,14,6,0,0,0,0,0,0,0,0,0,0,0,0,0,0,0,0,0,0,0,0,0,0,0,0,-10,0,-10,47,50,41,33,35,0,0,0,12,22,41,51,48,55,51,55,50,58,47,47,50,39,76,0,0,-223,-226,-208,-208,-185,0,0,0,0,0,0,0,0,0,0,0,0,0,0,0,0,0,0,0,0,-127,0,0,-77,-127,-137,-151,-120,-123,-120,-76,-14,-15,-9,-123,-8,-16,-158,0,-8,-24,-158,-158,-158,-158,-158,-158,-158,-158,-158,-158,-158,0,0,0,-158,-158,-252,-158,-252,-158,-158,-158,-158,-158,-158,-158,-158,-158,-158,-158,-158,-158,-158,-158,-158,-158,-158,-158,-158,-158,-289,-277,-29973,-29974,-29973,-29974,-29974,-29975,-29975,-29976,-29985,-29986,-29986,-29987]} 1. e4 {[%emt 0:00:01]} e5 {[%emt 0:00:03]} 2. Nf3 {[%emt 0:00:01]} Nc6 {[%emt 0:00:01]} 3. d4 {[%emt 0:00:00]} exd4 {[%emt 0:00:04]} 4. Nxd4 {[%emt 0:00:01]} Nf6 {[%emt 0:00:01]} 5. Nxc6 {[%emt 0:00:01]} bxc6 {[%emt 0:00:01]} 6. e5 {[%emt 0:00:01]} Qe7 {[%emt 0:00:02]} 7. Qe2 {[%emt 0:00:00]} Nd5 {[%emt 0:00:01]} 8. g3 {[%emt 0:00:01]} g6 {[%emt 0:00:10]} 9. c4 {[%emt 0:00:03]} Ba6 {[%emt 0:00:08]} 10. b3 {[%emt 0:00:07]} Bg7 {[%emt 0:00:04]} 11. Bb2 {[%emt 0:00:01]} O-O {[%emt 0:00:07]} 12. Bg2 {[%emt 0:00:01]} Rae8 {[%emt 0:01:13]} 13. O-O {[%emt 0:00:05]} Bxe5 {[%emt 0:00:02]} 14. Qxe5 {[%emt 0:00:04]} Qxe5 {[%emt 0:00:01]} 15. Bxe5 {[%emt 0:00:02]} Rxe5 {[%emt 0:00:01]} 16. cxd5 {[%emt 0:00:01]} Bxf1 {[%emt 0:00:02]} 17. Kxf1 {[%emt 0:00:01]} cxd5 {[%emt 0:00:02]} 18. Na3 {[%emt 0:00:04]} c6 {[%emt 0:00:22]} 19. Nc2 {[%emt 0:00:02]} a5 {[%emt 0:00:12]} 20. Rd1 {[%emt 0:00:04]} Ra8 {[%emt 0:01:02]} 21. Rd4 {[%emt 0:00:15]} Kf8 {[%emt 0:00:07]} 22. Bf3 {[%emt 0:00:27]} h5 {[%emt 0:00:16]} 23. Ne1 {[%emt 0:00:08]} Ree8 {[%emt 0:00:22]} 24. Nd3 {[%emt 0:00:10]} Ke7 {[%emt 0:00:03]} 25. Ke2 {[%emt 0:00:04]} Kd6+ {[%emt 0:00:10]} 26. Kd2 {[%emt 0:00:01]} Re6 {[%emt 0:03:38]} 27. Rf4 {[%emt 0:03:56]} Ke7 {[%emt 0:00:33]} 28. Ra4 {[%emt 0:00:48]} Kd6 {[%emt 0:00:09]} 29. h4 {[%emt 0:00:59]} Kc7 {[%emt 0:00:36]} 30. Rf4 {[%emt 0:00:23]} Rf8 {[%emt 0:00:24]} 31. Nc5 {[%emt 0:00:33]} Re7 {[%emt 0:00:04]} 32. Rf6 {[%emt 0:00:32]} Kb6 {[%emt 0:02:16]} 33. Nd3 {[%emt 0:00:20]} Re6 {[%emt 0:00:02]} 34. Rf4 {[%emt 0:00:12]} Re7 {[%emt 0:01:30]} 35. Kc3 {[%emt 0:02:22]} Re6 {[%emt 0:00:01]} 36. Kd2 {[%emt 0:00:26]} Re7 {[%emt 0:00:02]} 37. Nb2 {[%emt 0:01:24]} Kc7 {[%emt 0:01:00]} 38. Na4 {[%emt 0:00:31]} Kd6 {[%emt 0:00:18]} 39. Nc3 {[%emt 0:00:18]} Re5 {[%emt 0:01:04]} 40. Ne2 {[%emt 0:00:52]} Kc7 {[%emt 0:00:51]} 41. Nc3 {[%emt 0:01:31]} Kd6 {[%emt 0:00:22]} 42. Be2 {[%emt 0:00:42]} Rfe8 {[%emt 0:00:42]} (42... Ree8 $11) 43. Bd3 $1 $14 {[%emt 0:00:19]} R8e7 {[%emt 0:00:14]} 44. Ra4 {[%emt 0:00:11]} Kc7 {[%emt 0:00:05]} 45. Nd1 {[%emt 0:00:38]} (45. Ne2 $5 {[%cal Ra4a5]}) 45... Kb6 {[%emt 0:00:09]} 46. Ne3 {[%emt 0:00:14]} R5e6 {[%emt 0:00:15]} 47. Rf4 {[%emt 0:00:16]} Kc7 {[%emt 0:00:12]} 48. Nc2 {[%emt 0:00:06]} Kb6 {[%emt 0:00:05]} 49. Nd4 {[%emt 0:00:12]} Rd6 {[%emt 0:00:26]} 50. Nf3 {[%emt 0:00:20]} c5 {[%emt 0:00:21]} 51. Ng5 {[%emt 0:00:39]} f6 {[%emt 0:00:02]} 52. Nh3 $1 {[%emt 0:00:05]} Rg7 $1 {[%emt 0:00:25]} 53. Bf1 {[%emt 0:02:15]} Re6 {[%emt 0:01:10]} 54. Bg2 {[%emt 0:00:12]} (54. Rf3 $16) 54... Rge7 $11 {[%emt 0:00:07]} 55. Bxd5 $2 {[%emt 0:00:26]} (55. Kd3 $11) 55... Rd6 $19 {[%emt 0:00:02]} 56. Kc3 {[%emt 0:00:15]} Rxd5 {[%emt 0:00:03]} 57. Rxf6+ {[%emt 0:00:01]} Re6 $2 {[%emt 0:00:13]} (57... d6 $19 {Threatens to win with ...Rd1.} 58. Nf4 Rd1) 58. Nf4 $11 {[%emt 0:00:02]} Rf5 {[%emt 0:00:57]} (58... Rd3+ $2 59. Kxd3 Rxf6 60. Nd5+ Kc6 61. Nxf6 $18) 59. Rxf5 {[%emt 0:00:07]} gxf5 {[%emt 0:00:01]} 60. Nxe6 {[%emt 0:00:03]} dxe6 {[%emt 0:00:01]} 61. Kd3 {[%emt 0:01:09]} Kc6 {[%emt 0:00:18]} 62. Ke3 {[%emt 0:00:06]} e5 $1 {[%emt 0:00:10]} 63. f3 {[%emt 0:00:11]} Kd5 {[%emt 0:00:09]} 64. Kd3 {[%emt 0:00:13]} e4+ {[%emt 0:00:28]} (64... a4 $11 65. bxa4 c4+ 66. Ke2 (66. Kc3 $2 e4 $19) 66... Kc5) 65. Ke3 $17 {[%emt 0:00:02]} Ke5 {[%emt 0:00:03]} 66. a4 {[%emt 0:00:01]} exf3 {[%emt 0:00:54]} 67. Kxf3 {[%emt 0:00:05]} Kd4 {[%emt 0:00:01]} 68. Kf4 {[%emt 0:00:03]} Kc3 {[%emt 0:00:01]} 69. Kxf5 {[%emt 0:00:07]} Kxb3 {[%emt 0:00:01]} 70. g4 {[%emt 0:00:02]} hxg4 {[%emt 0:00:09]} 71. Kxg4 {[%emt 0:00:06]} c4 {[%emt 0:00:01]} 72. h5 {[%emt 0:00:03]} c3 {[%emt 0:00:01]} 73. h6 {[%emt 0:00:00]} c2 {[%emt 0:00:01]} 74. h7 {[%emt 0:00:01]} c1=Q {[%emt 0:00:02]} (74... Kxa4 $6 75. h8=Q c1=Q 76. Qe8+ Kb4 77. Qb8+ Ka3 78. Qd6+ Kb3 79. Qb6+ Ka4 80. Kh5 $17) 75. h8=Q {[%emt 0:00:04]} Qc4+ {[%emt 0:00:41]} (75... Kxa4 $6 76. Qe8+ Kb4 77. Qb8+ Ka3 78. Qd6+ Kb3 79. Qb6+ Ka4 80. Qd6 $17) 76. Kf3 {[%emt 0:00:04]} (76. Kg5 $11) 76... Qd3+ {[%emt 0:00:14]} ({Black should play} 76... Kxa4 $17 {With the idea ...Kb3.} 77. Qe5 Qd3+ 78. Kf4 Kb4 79. Qb2+ Qb3 80. Qd2+ Qc3 81. Qd6+ Kb3 82. Qd1+ Kb2 83. Qe2+ Kc1) 77. Kf2 $11 {[%emt 0:00:10]} Qd2+ {[%emt 0:00:13]} ({Of course not} 77... Kxa4 $6 78. Qb2 $17) 78. Kf3 {[%emt 0:00:02]} (78. Kf1 $1 $11) 78... Kxa4 $17 {[%emt 0:00:03]} 79. Qa1+ {[%emt 0:00:57]} Kb3 {[%emt 0:00:10]} 80. Qb1+ {[%emt 0:00:01]} Kc3 {[%emt 0:00:42]} 81. Qa1+ {[%emt 0:00:09]} Kb4 {[%emt 0:00:15]} 82. Qb1+ {[%emt 0:00:02]} Kc4 $1 {[%emt 0:00:17]} 83. Qe4+ {[%emt 0:00:08]} Qd4 $2 {[%emt 0:00:38]} (83... Kc3 $17 {( -> ...Qd3+)} 84. Qc6+ Kb3 85. Qe6+ Kb2) 84. Qe6+ $11 {[%emt 0:00:22]} Kb4 {[%emt 0:00:06]} 85. Qe7+ $2 {[%emt 0:00:23] [#]} ({White has to play} 85. Ke2 $1 $11) 85... Kb3 $1 $17 {[%emt 0:00:02]} 86. Qb7+ {[%emt 0:00:22]} (86. Ke2 $17) 86... Ka3 {[%emt 0:00:08]} 87. Qe7+ {[%emt 0:00:25]} (87. Qc7 $17 {keeps fighting.}) 87... Qb4 {[%emt 0:00:03]} 88. Qe5 {[%emt 0:00:12]} Qb3+ {[%emt 0:00:06]} 89. Ke4 {[%emt 0:00:19]} a4 {[%emt 0:00:20]} 90. Qa1+ {[%emt 0:00:05]} Kb4 {[%emt 0:00:01]} 91. Qe1+ {[%emt 0:00:09]} Kb5 {[%emt 0:00:30]} 92. Kf5 {[%emt 0:00:11]} Qd3+ {[%emt 0:00:15]} 93. Kg5 {[%emt 0:00:08]} a3 {[%emt 0:00:02]} 94. Qe5+ {[%emt 0:00:04]} Kc4 {[%emt 0:00:03]} 95. Qc7+ {[%emt 0:00:02]} Kb4 {[%emt 0:00:06]} 96. Qe7+ {[%emt 0:00:04]} Kb3 {[%emt 0:00:04]} 97. Qb7+ {[%emt 0:00:02]} Kc2 {[%emt 0:00:05]} 98. Qa7 {[%emt 0:00:15] [#]} (98. Qf7 $17 {was worth a try.}) 98... Qd5+ $1 $19 {[%emt 0:00:11]} 99. Kh6 $2 {[%emt 0:00:06]} (99. Kg6 $19 a2 100. Qf2+ Kb3 101. Qe3+ Kb4 102. Qe1+ Ka4 103. Qe8+ Ka5 104. Qe1+ Kb5 105. Qf1+ Kb4 106. Qf4+ Qc4 107. Qf8+ Qc5 108. Qf4+ Kb5 109. Qf1+ Kb6 110. Qa1) 99... a2 {[%emt 0:00:02]} 100. Qa4+ {[%emt 0:00:15]} Kc3 {[%emt 0:00:49]} 101. Qa3+ {[%emt 0:00:16]} Kd4 {[%emt 0:00:05]} 102. Qb2+ {[%emt 0:00:03]} Kd3 {[%emt 0:00:05]} 103. Kh7 {[%emt 0:00:18]} Qe4+ {[%emt 0:00:19]} 104. Kg8 {[%emt 0:00:09]} Qa8+ {[%emt 0:00:02]} 0-1

[Event "Susha Chess Rapid 2022"]
[Site "Shusha"]
[Date "2022.09.23"]
[Round "7.3"]
[White "Mamedyarov, Shakhriyar"]
[Black "Durarbayli, Vasif"]
[Result "1-0"]
[ECO "D44"]
[WhiteElo "2757"]
[BlackElo "2628"]
[Annotator "TA"]
[PlyCount "119"]
[EventDate "2022.09.21"]
[EventType "tourn"]
[EventCountry "AZE"]
[SourceTitle "playchess.com"]
[Source "ChessBase"]
[SourceQuality "1"]
[TimeControl "900+10"]

{[%evp 16,119,0,13,19,27,37,63,35,0,98,86,115,81,185,104,202,121,170,121,207,130,175,162,165,160,147,95,106,106,100,98,160,125,170,188,174,174,174,125,252,260,260,271,258,253,250,229,245,228,283,290,300,266,398,385,404,392,399,396,483,483,483,457,483,483,483,478,483,478,479,454,791,757,783,762,760,740,870,857,1022,1005,1112,1067,9721,10331,9822,12821,12091,1074,5420,4386,29952,6372,29969,29968,29978,29976,29976,29977,29977,29978,29978,29974,29983,29978]} 1. d4 {[%emt 0:00:01]} d5 {[%emt 0:00:00]} 2. c4 {[%emt 0:00:03]} c6 {[%emt 0:00:01]} 3. Nf3 {[%emt 0:00:11]} Nf6 {[%emt 0:00:00]} 4. Nc3 {[%emt 0:00:02]} e6 {[%emt 0:00:01]} 5. Bg5 {[%emt 0:00:04]} dxc4 {[%emt 0:00:02]} 6. e4 {[%emt 0:00:18][%cal Be2e4,Be4e5][%mdl 32]} b5 {[%emt 0:00:04]} 7. e5 {[%emt 0:00:03]} h6 {[%emt 0:00:01]} 8. Bh4 {[%emt 0:00:03]} g5 {[%emt 0:00:02]} 9. Nxg5 {[%emt 0:00:02]} hxg5 {[%emt 0:00:01] D44: Semi-Slav: Botvinnik System.} 10. Bxg5 {[%emt 0:00:02][%mdl 64] Pin} Be7 {[%emt 0:00:01] White must now prevent ...Nd5.} 11. exf6 {[%emt 0:00:06]} Bxf6 {[%emt 0:00:01] [#] White is slightly better.} 12. Bf4 $5 $146 {[%emt 0:00:02][%mdl 8] New and interesting.} ({Predecessor:} 12. Be3 Na6 13. a4 Nb4 14. axb5 Bxd4 15. Bxd4 Qxd4 16. Qxd4 Nc2+ 17. Kd1 Nxd4 18. b6 a5 19. Bxc4 c5 20. Ne4 {1-0 (50) Martirosyan,H (2652)-Can,E (2599) Sharjah 2022}) 12... Rh4 {[%emt 0:03:55]} (12... Bxd4 $11 {keeps the balance.} 13. Qf3 e5) 13. Qf3 {[%emt 0:02:42]} Bb7 {[%emt 0:00:05]} (13... Qxd4 $2 14. Bg3 Be7 15. Be2 $18) 14. Be2 {[%emt 0:03:09]} Be7 {[%emt 0:03:50]} (14... Qxd4 $2 15. Bg3 Nd7 16. O-O $18) (14... Bxd4 $2 15. Ne4 Rxf4 16. Qxf4 $16) (14... Na6 $16) 15. O-O {[%emt 0:00:59]} (15. g3 $18 Rh7 16. Nxb5 Qa5+ 17. Nc3) 15... Qb6 {[%emt 0:01:50]} (15... b4 $16) 16. a4 {[%emt 0:00:58]} (16. Rfd1 $18) 16... Nd7 $16 {[%emt 0:00:28][%cal Bb8d7,Bd7c5,Bc5e4][%mdl 32]} 17. Rfd1 {[%emt 0:01:28]} a5 {[%emt 0:00:56]} (17... a6 $16 {keeps fighting.}) 18. Bg3 {[%emt 0:00:33]} Rh7 {[%emt 0:02:52]} 19. Ne4 {[%emt 0:02:05]} c5 {[%emt 0:01:14]} 20. dxc5 {[%emt 0:00:03]} Nxc5 {[%emt 0:00:16] [#]} 21. Nf6+ {[%emt 0:00:02]} ({White should try} 21. Rd6 $1 {[%cal Rd6b6][%mdl 512]} Bxd6 22. Nxd6+ Qxd6 23. Bxd6 Bxf3 24. Bxf3) 21... Bxf6 {[%emt 0:00:20]} 22. Qxf6 {[%emt 0:00:01]} Ne4 {[%emt 0:00:12] Inhibits Qg5.} 23. Qe5 {[%emt 0:01:04]} Rc8 {[%emt 0:00:47]} (23... Nxg3 $142 24. Qxg3 Kf8) 24. axb5 {[%emt 0:00:46] Dancing on a razor blade.} Rc5 {[%emt 0:00:29]} 25. Qb8+ {[%emt 0:00:02]} Rc8 {[%emt 0:00:16] [#]} 26. Qf4 $36 {[%emt 0:00:05][%mdl 2048] Hoping for Rac1. White is in control.} Qxb5 {[%emt 0:00:28]} 27. Bf3 {[%emt 0:00:49] A strong pair of Bishops.} (27. Rac1 $18 {[%cal Oc1c4] Threatens to win with Rxc4!} Nxg3 28. Qxg3) 27... Qf5 {[%emt 0:00:47] Loses the game.} (27... Nxg3 $16 28. Qxg3 Kf8) 28. Qxf5 $18 {[%emt 0:00:22]} exf5 {[%emt 0:00:00]} 29. Rxa5 {[%emt 0:00:03]} Nxg3 {[%emt 0:00:23]} 30. Bxb7 {[%emt 0:00:31]} Ne2+ {[%emt 0:00:25]} 31. Kh1 {[%emt 0:01:36]} Rc7 {[%emt 0:00:12]} 32. Ba6 {[%emt 0:00:56] Strongly threatening Re5+.} ({Don't do} 32. Bf3 Nf4 33. Rxf5 Nd3) 32... Nf4 {[%emt 0:00:18]} 33. Rxf5 {[%emt 0:00:07]} Nd3 {[%emt 0:00:00]} 34. b3 {[%emt 0:00:06]} Nb2 {[%emt 0:00:21]} (34... Rh5 $142) 35. Re1+ {[%emt 0:00:14]} ({Less strong is} 35. Bb5+ Kf8 $18) 35... Kf8 {[%emt 0:00:00]} 36. bxc4 {[%emt 0:00:12]} Rh6 {[%emt 0:00:11]} 37. Bb5 {[%emt 0:00:12]} Nxc4 {[%emt 0:00:01]} 38. Bxc4 {[%emt 0:00:23]} Rxc4 {[%emt 0:00:01][%mdl 4096] Endgame KRR-KRR} 39. g3 {[%emt 0:00:02][%cal Bg2g3,Bg3g4,Bg4g5][%mdl 32]} Rc7 {[%emt 0:00:07]} 40. Kg2 {[%emt 0:00:03]} Ra6 {[%emt 0:00:00]} 41. Re4 {[%emt 0:00:07] Prevents Rc4.} Ra2 {[%emt 0:00:04]} 42. h4 {[%emt 0:00:07][%cal Bh2h4,Bh4h5][%mdl 32]} Rb2 {[%emt 0:00:01]} 43. g4 {[%emt 0:00:14]} Rb3 {[%emt 0:00:02]} (43... Rb8 $142 44. Re6 Kg7) 44. h5 {[%emt 0:00:08]} Rb1 {[%emt 0:00:08]} 45. Ref4 {[%emt 0:00:14]} Kg7 {[%emt 0:00:11]} 46. g5 {[%emt 0:00:01]} Kg8 {[%emt 0:00:05]} 47. Rd4 {[%emt 0:00:27]} Kg7 {[%emt 0:00:11]} 48. Rd6 {[%emt 0:00:15]} Rb4 {[%emt 0:00:09]} 49. Kg3 {[%emt 0:00:14]} Rc3+ {[%emt 0:00:03]} 50. f3 {[%emt 0:00:06] h6+ would kill now.} Rb7 {[%emt 0:00:08]} 51. h6+ {[%emt 0:00:33]} Kh7 {[%emt 0:00:06]} 52. Rdf6 {[%emt 0:00:01]} (52. Kg4 $142 Rc1 53. Rfd5) 52... Rcc7 {[%emt 0:00:12]} 53. Kg4 {[%emt 0:00:02] aiming for Rd5.} Kg8 {[%emt 0:00:02]} 54. Rd6 {[%emt 0:00:25] Intending Rd8+ and mate.} Rc1 {[%emt 0:00:02]} 55. Rfd5 {[%emt 0:00:15] White mates.} Rcc7 {[%emt 0:00:18]} 56. Kf5 {[%emt 0:00:04]} Kh7 {[%emt 0:00:01]} 57. Kf6 {[%emt 0:00:13]} Rc4 {[%emt 0:00:15]} 58. Rd4 {[%emt 0:00:02]} Rc5 {[%emt 0:00:01]} 59. f4 {[%emt 0:00:11]} Ra5 {[%emt 0:00:11]} 60. R4d5 {[%emt 0:00:12] Weighted Error Value: White=0.18 (very precise) /Black=0.37} 1-0

[Event "Susha Chess Rapid 2022"]
[Site "Shusha"]
[Date "2022.09.23"]
[Round "7.4"]
[White "Wang, Hao"]
[Black "Maghsoodloo, Parham"]
[Result "1/2-1/2"]
[ECO "B94"]
[WhiteElo "2722"]
[BlackElo "2721"]
[Annotator "TA"]
[PlyCount "40"]
[EventDate "2022.09.21"]
[EventType "tourn"]
[EventCountry "AZE"]
[SourceTitle "playchess.com"]
[Source "ChessBase"]
[SourceQuality "1"]
[TimeControl "900+10"]

{[%evp 13,40,0,56,24,34,34,40,33,37,36,67,68,75,76,75,87,203,194,202,-20,-12,-21,-21,-15,-4,-7,-10,-14,12]} 1. e4 {[%emt 0:00:02]} c5 {[%emt 0:00:01]} 2. Nf3 {[%emt 0:00:02]} d6 {[%emt 0:00:02]} 3. d4 {[%emt 0:00:06]} cxd4 {[%emt 0:00:01]} 4. Nxd4 {[%emt 0:00:02]} Nf6 {[%emt 0:00:02]} 5. Nc3 {[%emt 0:00:08]} a6 {[%emt 0:00:02]} 6. Bg5 {[%emt 0:00:22]} Nbd7 {[%emt 0:00:05]} 7. f4 {[%emt 0:00:02] 7.Qe2 is a critical line.} b5 {[%emt 0:00:02]} (7... e5 $11 8. Nf5 Qb6) 8. Qe2 {[%emt 0:00:59] Hoping for e5. B94: Sicilian Najdorf: 6 Bg5 Nbd7.} (8. Bxf6 $5 Nxf6 9. e5 $14) 8... e5 {[%emt 0:00:01]} 9. fxe5 {[%emt 0:00:35]} dxe5 {[%emt 0:00:15]} 10. O-O-O {[%emt 0:00:11] White is slightly better.} exd4 {[%emt 0:00:30]} 11. e5 {[%emt 0:00:09]} Be7 {[%emt 0:00:47][%cal Of6g4] Strongly threatening ...Ng4!} 12. exf6 {[%emt 0:00:47][%mdl 64] Discovered Attack} gxf6 {[%emt 0:00:05][%cal Bg7f6,Bf6g5,Bg5f4,Bf4f3,Bf3g2][%mdl 32] [#]} 13. Nd5 $1 {[%emt 0:00:08][%cal Bc3d5,Bd5e7,Be7f5,Bf5h4][%mdl 32]} fxg5 {[%emt 0:00:03]} 14. Re1 {[%emt 0:00:03][%cal Rd5e7] [#] White has more active pieces. The black rooks are badly placed.} Bb7 $5 $146 {[%emt 0:00:47][%mdl 8] New and interesting.} ({Predecessor:} 14... Nf6 15. Nxf6+ Kf8 16. Qe4 Be6 17. Nxh7+ Kg7 18. Bd3 Ra7 19. Qe5+ Kg8 20. h4 gxh4 21. Qh5 Qd5 22. Re5 Qxg2 23. Ree1 Rxh7 24. Bxh7+ Kf8 25. Rhg1 {1-0 (25) Negi,P (2661)-Vorobiov,E (2586) Leiden 2012}) 15. Nxe7 $18 {[%emt 0:00:27]} ({Inferior is} 15. Qxe7+ Qxe7 16. Nxe7 (16. Rxe7+ Kd8 $17) 16... Kd8 $11) 15... Kf8 {[%emt 0:00:02] [#]} (15... d3 $2 16. Qxd3 Qa5 17. Re3 $18 (17. Rd1 Qc7 $16)) 16. Qf2 $2 {[%emt 0:02:46]} (16. Qd2 $1 $18 {[%cal Rd2d4]} Qb6 17. Bd3 (17. Qxg5 Re8 $14)) 16... Qc7 $1 $11 {[%emt 0:00:48] Threatens to win with ...Re8. The position is equal.} 17. Nf5 {[%emt 0:03:30]} Qf4+ {[%emt 0:00:03]} 18. Qxf4 {[%emt 0:00:03]} gxf4 {[%emt 0:00:01]} 19. Rd1 {[%emt 0:00:42]} f3 {[%emt 0:00:39]} 20. Nh4 {[%emt 0:00:21]} fxg2 {[%emt 0:01:08] Weighted Error Value: White=0.26 (precise) /Black=0.23 (precise)} 1/2-1/2